[Event "Titled Tuesday Blitz August 3 2021"]
[White "Potapova, Margarita"]
[Black "Salinas Herrera, Pablo"]
[WhiteFideId "14126869"]
[BlackFideId "3407128"]
[WhiteElo "2229"]
[BlackElo "2541"]
[Result "0-1"]
[Round "07"]
[TimeControl "180+1"]
[Date "2021.08.03"]
[WhiteClock "0:00:02"]
[BlackClock "0:00:11"]

1. d4 {[%clk 0:03:00]}  d5 {[%clk 0:02:58]} 2. c4 {[%clk 0:03:01]}  e6 {[%clk 0:02:49]} 3. Nf3 {[%clk 0:02:59]}  a6 {[%clk 0:02:39]} 4. cxd5 {[%clk 0:02:57]}  exd5 {[%clk 0:02:39]} 5. Nc3 {[%clk 0:02:58]}  Nf6 {[%clk 0:02:39]} 6. Bg5 {[%clk 0:02:56]}  Be6 {[%clk 0:02:39]} 7. Bxf6 {[%clk 0:02:52]}  Qxf6 {[%clk 0:02:39]} 8. Qb3 {[%clk 0:02:53]}  b6 {[%clk 0:02:37]} 9. Nxd5 {[%clk 0:02:21]}  Qd8 {[%clk 0:02:37]} 10. e4 {[%clk 0:02:17]}  c6 {[%clk 0:02:31]} 11. Bc4 {[%clk 0:02:01]}  b5 {[%clk 0:02:21]} 12. Nc7+ {[%clk 0:01:53]}  Qxc7 {[%clk 0:02:21]} 13. Bxe6 {[%clk 0:01:53]}  fxe6 {[%clk 0:02:22]} 14. Qxe6+ {[%clk 0:01:54]}  Qe7 {[%clk 0:01:42]} 15. Qc8+ {[%clk 0:01:53]}  Kf7 {[%clk 0:01:37]} 16. O-O {[%clk 0:01:37]}  Kg8 {[%clk 0:01:10]} 17. Ne5 {[%clk 0:01:31]}  c5 {[%clk 0:00:42]} 18. Rac1 {[%clk 0:01:15]}  cxd4 {[%clk 0:00:42]} 19. Rc7 {[%clk 0:01:06]}  Qxe5 {[%clk 0:00:40]} 20. Qb7 {[%clk 0:01:06]}  Nc6 {[%clk 0:00:20]} 21. Rxc6 {[%clk 0:00:39]}  Rd8 {[%clk 0:00:16]} 22. Rc7 {[%clk 0:00:33]}  d3 {[%clk 0:00:13]} 23. Rd7 {[%clk 0:00:27]}  Rxd7 {[%clk 0:00:11]} 24. Qxd7 {[%clk 0:00:28]}  Qxe4 {[%clk 0:00:11]} 25. Rd1 {[%clk 0:00:25]}  h5 {[%clk 0:00:10]} 26. h3 {[%clk 0:00:20]}  Rh6 {[%clk 0:00:10]} 27. Rxd3 {[%clk 0:00:19]}  Qe1+ {[%clk 0:00:11]} 28. Kh2 {[%clk 0:00:19]}  Rf6 {[%clk 0:00:06]} 29. Qd5+ {[%clk 0:00:18]}  Qe6 {[%clk 0:00:07]} 30. Qxh5 {[%clk 0:00:17]}  Rxf2 {[%clk 0:00:07]} 31. Qd1 {[%clk 0:00:12]}  Qe5+ {[%clk 0:00:06]} 32. Kg1 {[%clk 0:00:12]}  Qxb2 {[%clk 0:00:05]} 33. Qg4 {[%clk 0:00:10]}  Rf7 {[%clk 0:00:05]} 34. Qe6 {[%clk 0:00:09]}  Qc1+ {[%clk 0:00:05]} 35. Kh2 {[%clk 0:00:09]}  Qf4+ {[%clk 0:00:06]} 36. Kg1 {[%clk 0:00:08]}  Qf6 {[%clk 0:00:06]} 37. Qe4 {[%clk 0:00:08]}  Bc5+ {[%clk 0:00:06]} 38. Kh2 {[%clk 0:00:08]}  Bd6+ {[%clk 0:00:07]} 39. Rxd6 {[%clk 0:00:04]}  Qxd6+ {[%clk 0:00:07]} 40. Kg1 {[%clk 0:00:03]}  Qd1+ {[%clk 0:00:06]} 41. Kh2 {[%clk 0:00:03]}  Qd6+ {[%clk 0:00:07]} 42. Kg1 {[%clk 0:00:04]}  Qf4 {[%clk 0:00:07]} 43. Qe8+ {[%clk 0:00:04]}  Rf8 {[%clk 0:00:08]} 44. Qe6+ {[%clk 0:00:03]}  Kh8 {[%clk 0:00:08]} 45. Qe2 {[%clk 0:00:03]}  Qd4+ {[%clk 0:00:08]} 46. Kh2 {[%clk 0:00:02]}  Qd6+ {[%clk 0:00:09]} 47. Kg1 {[%clk 0:00:03]}  g6 {[%clk 0:00:09]} 48. Qg4 {[%clk 0:00:02]}  Kg7 {[%clk 0:00:09]} 49. Qe4 {[%clk 0:00:01]}  Qf6 {[%clk 0:00:09]} 50. Qb7+ {[%clk 0:00:01]}  Rf7 {[%clk 0:00:10]} 51. Qe4 {[%clk 0:00:02]}  Qf2+ {[%clk 0:00:10]} 52. Kh2 {[%clk 0:00:02]}  Qf4+ {[%clk 0:00:11]} 0-1


[Site "https://www.chess.com"]

[Event "Titled Tuesday Blitz August 3 2021"]
[White "Quispe Arteaga, Gabriel"]
[Black "Diaz Perez, Michel Alejandro"]
[WhiteFideId "32059809"]
[BlackFideId "3517179"]
[WhiteElo "2172"]
[BlackElo "2337"]
[Result "1-0"]
[Round "07"]
[TimeControl "180+1"]
[Date "2021.08.03"]
[WhiteClock "0:00:18"]
[BlackClock "0:00:12"]

1. d4 {[%clk 0:02:52]}  Nf6 {[%clk 0:02:58]} 2. c4 {[%clk 0:02:39]}  e6 {[%clk 0:02:57]} 3. Nc3 {[%clk 0:02:39]}  d5 {[%clk 0:02:55]} 4. cxd5 {[%clk 0:02:38]}  exd5 {[%clk 0:02:55]} 5. Bg5 {[%clk 0:02:38]}  Nbd7 {[%clk 0:02:54]} 6. e3 {[%clk 0:02:38]}  c6 {[%clk 0:02:54]} 7. Qc2 {[%clk 0:02:37]}  Be7 {[%clk 0:02:55]} 8. Bd3 {[%clk 0:02:38]}  Nh5 {[%clk 0:02:55]} 9. Bxe7 {[%clk 0:02:31]}  Qxe7 {[%clk 0:02:56]} 10. Nge2 {[%clk 0:02:32]}  Nb6 {[%clk 0:02:51]} 11. O-O {[%clk 0:02:30]}  g6 {[%clk 0:02:49]} 12. a4 {[%clk 0:02:21]}  a5 {[%clk 0:02:43]} 13. Rae1 {[%clk 0:02:13]}  O-O {[%clk 0:02:41]} 14. Nc1 {[%clk 0:02:11]}  Ng7 {[%clk 0:02:38]} 15. Nb3 {[%clk 0:02:07]}  Bf5 {[%clk 0:02:35]} 16. e4 {[%clk 0:01:57]}  dxe4 {[%clk 0:02:34]} 17. Nxe4 {[%clk 0:01:57]}  Ne6 {[%clk 0:02:26]} 18. Nec5 {[%clk 0:01:44]}  Bxd3 {[%clk 0:02:23]} 19. Qxd3 {[%clk 0:01:43]}  Rfd8 {[%clk 0:01:56]} 20. Nxe6 {[%clk 0:01:34]}  fxe6 {[%clk 0:01:57]} 21. Qe4 {[%clk 0:01:34]}  Rd6 {[%clk 0:01:51]} 22. Nc5 {[%clk 0:01:30]}  Re8 {[%clk 0:01:39]} 23. Rd1 {[%clk 0:01:17]}  e5 {[%clk 0:01:34]} 24. Rfe1 {[%clk 0:01:16]}  Rd5 {[%clk 0:01:25]} 25. Qc2 {[%clk 0:01:00]}  Kg7 {[%clk 0:00:31]} 26. h3 {[%clk 0:00:49]}  Kg8 {[%clk 0:00:28]} 27. Qb3 {[%clk 0:00:45]}  Qc7 {[%clk 0:00:23]} 28. dxe5 {[%clk 0:00:37]}  Kg7 {[%clk 0:00:17]} 29. Qc3 {[%clk 0:00:26]}  Qe7 {[%clk 0:00:10]} 30. e6+ {[%clk 0:00:22]}  Qf6 {[%clk 0:00:11]} 31. Qxf6+ {[%clk 0:00:14]}  Kxf6 {[%clk 0:00:12]} 32. Nxb7 {[%clk 0:00:14]}  Rxd1 {[%clk 0:00:10]} 33. Rxd1 {[%clk 0:00:15]}  Nxa4 {[%clk 0:00:11]} 34. Nxa5 {[%clk 0:00:14]}  Nxb2 {[%clk 0:00:10]} 35. Rd2 {[%clk 0:00:15]}  Na4 {[%clk 0:00:10]} 36. Nxc6 {[%clk 0:00:15]}  Rxe6 {[%clk 0:00:11]} 37. Nd4 {[%clk 0:00:15]}  Rd6 {[%clk 0:00:10]} 38. Nf3 {[%clk 0:00:15]}  Rxd2 {[%clk 0:00:09]} 39. Nxd2 {[%clk 0:00:16]}  Nc3 {[%clk 0:00:10]} 40. f3 {[%clk 0:00:17]}  g5 {[%clk 0:00:09]} 41. Kf2 {[%clk 0:00:17]}  Kf5 {[%clk 0:00:09]} 42. Nc4 {[%clk 0:00:16]}  h5 {[%clk 0:00:09]} 43. Ne3+ {[%clk 0:00:16]}  Kf6 {[%clk 0:00:09]} 44. g4 {[%clk 0:00:12]}  hxg4 {[%clk 0:00:08]} 45. fxg4 {[%clk 0:00:09]}  Ke5 {[%clk 0:00:08]} 46. Kf3 {[%clk 0:00:10]}  Kf6 {[%clk 0:00:07]} 47. Nf1 {[%clk 0:00:08]}  Ke5 {[%clk 0:00:07]} 48. Nh2 {[%clk 0:00:07]}  Ne4 {[%clk 0:00:04]} 49. Ke3 {[%clk 0:00:06]}  Nc5 {[%clk 0:00:02]} 50. Nf3+ {[%clk 0:00:06]}  Kf6 {[%clk 0:00:03]} 51. Kd4 {[%clk 0:00:06]}  Ne6+ {[%clk 0:00:03]} 52. Ke4 {[%clk 0:00:06]}  Nf4 {[%clk 0:00:03]} 53. h4 {[%clk 0:00:06]}  Ne6 {[%clk 0:00:03]} 54. h5 {[%clk 0:00:05]}  Nc5+ {[%clk 0:00:03]} 55. Ke3 {[%clk 0:00:05]}  Ne6 {[%clk 0:00:03]} 56. Nd2 {[%clk 0:00:05]}  Nf4 {[%clk 0:00:03]} 57. Ne4+ {[%clk 0:00:06]}  Kg7 {[%clk 0:00:02]} 58. Nxg5 {[%clk 0:00:07]}  Ng2+ {[%clk 0:00:02]} 59. Kf3 {[%clk 0:00:07]}  Nh4+ {[%clk 0:00:03]} 60. Kg3 {[%clk 0:00:07]}  Ng2 {[%clk 0:00:03]} 61. Kxg2 {[%clk 0:00:08]}  Kh6 {[%clk 0:00:04]} 62. Nf3 {[%clk 0:00:08]}  Kg7 {[%clk 0:00:04]} 63. Kg3 {[%clk 0:00:09]}  Kh7 {[%clk 0:00:05]} 64. Kf4 {[%clk 0:00:10]}  Kg7 {[%clk 0:00:06]} 65. g5 {[%clk 0:00:11]}  Kh7 {[%clk 0:00:06]} 66. Kf5 {[%clk 0:00:12]}  Kh8 {[%clk 0:00:07]} 67. g6 {[%clk 0:00:12]}  Kg8 {[%clk 0:00:08]} 68. Kg5 {[%clk 0:00:13]}  Kh8 {[%clk 0:00:09]} 69. Kh6 {[%clk 0:00:13]}  Kg8 {[%clk 0:00:10]} 70. g7 {[%clk 0:00:14]}  Kf7 {[%clk 0:00:10]} 71. Kh7 {[%clk 0:00:14]}  Kf6 {[%clk 0:00:11]} 72. g8=Q {[%clk 0:00:15]}  Kf5 {[%clk 0:00:12]} 73. Qg5+ {[%clk 0:00:15]}  Ke4 {[%clk 0:00:12]} 74. Nh4 {[%clk 0:00:15]}  Kd4 {[%clk 0:00:12]} 75. Qf6+ {[%clk 0:00:16]}  Ke4 {[%clk 0:00:12]} 76. Kg6 {[%clk 0:00:17]}  Ke3 {[%clk 0:00:12]} 77. h6 {[%clk 0:00:18]} 1-0


[Site "https://www.chess.com"]

[Event "Titled Tuesday Blitz August 3 2021"]
[White "Quparadze, Giga"]
[Black "Zhigalko, Sergei"]
[WhiteFideId "13602250"]
[BlackFideId "13502956"]
[WhiteElo "2658"]
[BlackElo "2662"]
[Result "0-1"]
[Round "07"]
[TimeControl "180+1"]
[Date "2021.08.03"]
[WhiteClock "0:00:57"]
[BlackClock "0:00:41"]

1. e4 {[%clk 0:03:00]}  c5 {[%clk 0:03:00]} 2. Nf3 {[%clk 0:03:00]}  Nc6 {[%clk 0:03:00]} 3. Bb5 {[%clk 0:03:00]}  Nf6 {[%clk 0:03:01]} 4. Nc3 {[%clk 0:02:58]}  Qc7 {[%clk 0:03:01]} 5. O-O {[%clk 0:02:56]}  Nd4 {[%clk 0:03:01]} 6. Re1 {[%clk 0:02:50]}  a6 {[%clk 0:03:00]} 7. Bf1 {[%clk 0:02:44]}  Ng4 {[%clk 0:02:59]} 8. e5 {[%clk 0:02:42]}  h5 {[%clk 0:02:59]} 9. Nd5 {[%clk 0:02:35]}  Qc6 {[%clk 0:02:59]} 10. c4 {[%clk 0:02:31]}  Nxf3+ {[%clk 0:02:40]} 11. gxf3 {[%clk 0:02:16]}  Nh6 {[%clk 0:02:41]} 12. Bg2 {[%clk 0:02:16]}  e6 {[%clk 0:02:38]} 13. f4 {[%clk 0:02:08]}  exd5 {[%clk 0:02:37]} 14. cxd5 {[%clk 0:02:09]}  Qg6 {[%clk 0:02:34]} 15. d6 {[%clk 0:02:09]}  b5 {[%clk 0:02:10]} 16. Kh1 {[%clk 0:02:03]}  Rb8 {[%clk 0:02:01]} 17. d4 {[%clk 0:01:59]}  c4 {[%clk 0:01:31]} 18. Be4 {[%clk 0:01:48]}  Qg4 {[%clk 0:01:24]} 19. f3 {[%clk 0:01:39]}  Qh4 {[%clk 0:01:24]} 20. Qe2 {[%clk 0:01:35]}  g6 {[%clk 0:01:20]} 21. Be3 {[%clk 0:01:26]}  Bg7 {[%clk 0:01:20]} 22. Bf2 {[%clk 0:01:18]}  Qxf4 {[%clk 0:01:10]} 23. Rg1 {[%clk 0:01:17]}  Nf5 {[%clk 0:01:06]} 24. Rad1 {[%clk 0:01:10]}  Bb7 {[%clk 0:01:04]} 25. d5 {[%clk 0:01:09]}  Bxe5 {[%clk 0:00:57]} 26. Bg3 {[%clk 0:01:10]}  Nxg3+ {[%clk 0:00:57]} 27. hxg3 {[%clk 0:01:11]}  Qf6 {[%clk 0:00:52]} 28. f4 {[%clk 0:01:09]}  Bxd6 {[%clk 0:00:51]} 29. Bxg6+ {[%clk 0:01:01]}  Kf8 {[%clk 0:00:51]} 30. Be4 {[%clk 0:01:00]}  Re8 {[%clk 0:00:51]} 31. Qf3 {[%clk 0:00:56]}  h4 {[%clk 0:00:48]} 32. g4 {[%clk 0:00:56]}  Qxf4 {[%clk 0:00:47]} 33. Qxf4 {[%clk 0:00:57]}  Bxf4 {[%clk 0:00:48]} 34. Bf5 {[%clk 0:00:57]}  d6 {[%clk 0:00:46]} 35. Rgf1 {[%clk 0:00:57]}  Bg3 {[%clk 0:00:41]} 0-1


[Site "https://www.chess.com"]

[Event "Titled Tuesday Blitz August 3 2021"]
[White "Reprintsev, Alexander"]
[Black "Shimelkov, Vasiliy"]
[WhiteFideId "14100541"]
[BlackFideId "13701630"]
[WhiteElo "2126"]
[BlackElo "2073"]
[Result "1/2-1/2"]
[Round "07"]
[TimeControl "180+1"]
[Date "2021.08.03"]
[WhiteClock "0:00:22"]
[BlackClock "0:00:18"]

1. e4 {[%clk 0:03:00]}  c6 {[%clk 0:02:59]} 2. b3 {[%clk 0:03:00]}  d5 {[%clk 0:02:59]} 3. Qe2 {[%clk 0:03:01]}  e6 {[%clk 0:02:42]} 4. Bb2 {[%clk 0:03:00]}  c5 {[%clk 0:02:38]} 5. exd5 {[%clk 0:03:00]}  Qxd5 {[%clk 0:02:37]} 6. Nc3 {[%clk 0:03:00]}  Qd8 {[%clk 0:02:35]} 7. O-O-O {[%clk 0:02:59]}  Nf6 {[%clk 0:02:34]} 8. Nf3 {[%clk 0:03:00]}  Be7 {[%clk 0:02:33]} 9. d4 {[%clk 0:02:56]}  cxd4 {[%clk 0:02:30]} 10. Nxd4 {[%clk 0:02:56]}  Bd7 {[%clk 0:02:28]} 11. Qf3 {[%clk 0:02:47]}  Qc8 {[%clk 0:02:25]} 12. Bd3 {[%clk 0:02:21]}  O-O {[%clk 0:02:20]} 13. Rhe1 {[%clk 0:02:20]}  Nc6 {[%clk 0:02:16]} 14. Nxc6 {[%clk 0:02:12]}  Bxc6 {[%clk 0:02:14]} 15. Qg3 {[%clk 0:02:12]}  Rd8 {[%clk 0:02:10]} 16. Ne4 {[%clk 0:02:03]}  Bxe4 {[%clk 0:02:06]} 17. Bxe4 {[%clk 0:02:01]}  Rxd1+ {[%clk 0:02:05]} 18. Rxd1 {[%clk 0:02:01]}  a5 {[%clk 0:01:57]} 19. a4 {[%clk 0:02:00]}  Ra6 {[%clk 0:01:54]} 20. Bf3 {[%clk 0:01:59]}  h6 {[%clk 0:01:49]} 21. Qe5 {[%clk 0:01:58]}  Ra7 {[%clk 0:01:41]} 22. Qd4 {[%clk 0:01:53]}  Ra8 {[%clk 0:01:38]} 23. Kb1 {[%clk 0:01:53]}  Ne8 {[%clk 0:01:34]} 24. Qd7 {[%clk 0:01:51]}  Bh4 {[%clk 0:01:31]} 25. Bxb7 {[%clk 0:01:47]}  Qxd7 {[%clk 0:01:28]} 26. Rxd7 {[%clk 0:01:47]}  Rd8 {[%clk 0:01:27]} 27. Rxd8 {[%clk 0:01:45]}  Bxd8 {[%clk 0:01:27]} 28. Bc3 {[%clk 0:01:37]}  Bb6 {[%clk 0:01:24]} 29. Be4 {[%clk 0:01:28]}  Nc7 {[%clk 0:01:20]} 30. f3 {[%clk 0:01:24]}  Na6 {[%clk 0:01:18]} 31. Kb2 {[%clk 0:01:18]}  f5 {[%clk 0:01:16]} 32. Bb7 {[%clk 0:01:17]}  Nc5 {[%clk 0:01:14]} 33. Bc8 {[%clk 0:01:15]}  Kf7 {[%clk 0:01:13]} 34. Ka3 {[%clk 0:01:14]}  Ke7 {[%clk 0:01:11]} 35. Bxg7 {[%clk 0:01:12]}  Kd8 {[%clk 0:01:08]} 36. Bxe6 {[%clk 0:01:06]}  Nxe6 {[%clk 0:01:06]} 37. Bxh6 {[%clk 0:01:06]}  f4 {[%clk 0:01:05]} 38. g3 {[%clk 0:01:05]}  Bc5+ {[%clk 0:01:01]} 39. Kb2 {[%clk 0:01:03]}  fxg3 {[%clk 0:00:58]} 40. hxg3 {[%clk 0:01:02]}  Bd6 {[%clk 0:00:59]} 41. g4 {[%clk 0:00:59]}  Nd4 {[%clk 0:00:57]} 42. Bd2 {[%clk 0:00:50]}  Nxf3 {[%clk 0:00:54]} 43. Bxa5+ {[%clk 0:00:50]}  Kd7 {[%clk 0:00:55]} 44. Bc3 {[%clk 0:00:46]}  Be7 {[%clk 0:00:48]} 45. a5 {[%clk 0:00:38]}  Kc6 {[%clk 0:00:47]} 46. b4 {[%clk 0:00:36]}  Kb5 {[%clk 0:00:45]} 47. Kb3 {[%clk 0:00:36]}  Nh2 {[%clk 0:00:42]} 48. Be5 {[%clk 0:00:36]}  Nxg4 {[%clk 0:00:41]} 49. c4+ {[%clk 0:00:37]}  Ka6 {[%clk 0:00:37]} 50. Bc7 {[%clk 0:00:37]}  Nf6 {[%clk 0:00:34]} 51. b5+ {[%clk 0:00:37]}  Kb7 {[%clk 0:00:34]} 52. Be5 {[%clk 0:00:37]}  Nd7 {[%clk 0:00:34]} 53. a6+ {[%clk 0:00:37]}  Kb6 {[%clk 0:00:34]} 54. Bd4+ {[%clk 0:00:36]}  Bc5 {[%clk 0:00:33]} 55. Kc3 {[%clk 0:00:30]}  Ka7 {[%clk 0:00:20]} 56. Bxc5+ {[%clk 0:00:28]}  Nxc5 {[%clk 0:00:20]} 57. Kd4 {[%clk 0:00:29]}  Kb6 {[%clk 0:00:20]} 58. Kd5 {[%clk 0:00:29]}  Nb3 {[%clk 0:00:18]} 59. c5+ {[%clk 0:00:25]}  Nxc5 {[%clk 0:00:17]} 60. a7 {[%clk 0:00:23]}  Kxa7 {[%clk 0:00:18]} 61. Kxc5 {[%clk 0:00:23]}  Kb7 {[%clk 0:00:18]} 62. Kd4 {[%clk 0:00:22]}  Kb6 {[%clk 0:00:18]} 63. Ke3 {[%clk 0:00:22]}  Kxb5 {[%clk 0:00:18]} 1/2-1/2


[Site "https://www.chess.com"]

[Event "Titled Tuesday Blitz August 3 2021"]
[White "Serikbay, Assel"]
[Black "Bazeev, German"]
[WhiteFideId "13706799"]
[BlackFideId "24119350"]
[WhiteElo "2044"]
[BlackElo "2462"]
[Result "0-1"]
[Round "07"]
[TimeControl "180+1"]
[Date "2021.08.03"]
[WhiteClock "0:00:18"]
[BlackClock "0:00:40"]

1. e4 {[%clk 0:03:00]}  c6 {[%clk 0:02:38]} 2. d4 {[%clk 0:02:56]}  d5 {[%clk 0:02:37]} 3. exd5 {[%clk 0:02:52]}  cxd5 {[%clk 0:02:37]} 4. c4 {[%clk 0:02:52]}  e6 {[%clk 0:02:36]} 5. Nf3 {[%clk 0:02:51]}  Nc6 {[%clk 0:02:35]} 6. Nc3 {[%clk 0:02:51]}  Bb4 {[%clk 0:02:35]} 7. Be2 {[%clk 0:02:49]}  dxc4 {[%clk 0:02:32]} 8. Bxc4 {[%clk 0:02:49]}  Nf6 {[%clk 0:02:28]} 9. O-O {[%clk 0:02:48]}  O-O {[%clk 0:02:24]} 10. Bg5 {[%clk 0:02:46]}  h6 {[%clk 0:02:24]} 11. Bh4 {[%clk 0:02:46]}  Be7 {[%clk 0:02:23]} 12. Rc1 {[%clk 0:02:18]}  Bd7 {[%clk 0:02:01]} 13. Bxf6 {[%clk 0:01:59]}  Bxf6 {[%clk 0:02:00]} 14. d5 {[%clk 0:01:59]}  exd5 {[%clk 0:01:58]} 15. Nxd5 {[%clk 0:01:59]}  Bg4 {[%clk 0:01:59]} 16. h3 {[%clk 0:01:53]}  Bh5 {[%clk 0:01:57]} 17. g4 {[%clk 0:01:49]}  Bg6 {[%clk 0:01:56]} 18. Re1 {[%clk 0:01:09]}  Bxb2 {[%clk 0:01:47]} 19. Rb1 {[%clk 0:00:53]}  Bxb1 {[%clk 0:01:46]} 20. Qxb1 {[%clk 0:00:53]}  Na5 {[%clk 0:01:47]} 21. Qxb2 {[%clk 0:00:32]}  Nxc4 {[%clk 0:01:45]} 22. Qxb7 {[%clk 0:00:21]}  Rb8 {[%clk 0:01:14]} 23. Ne7+ {[%clk 0:00:20]}  Kh8 {[%clk 0:01:14]} 24. Qe4 {[%clk 0:00:20]}  Nd2 {[%clk 0:01:08]} 25. Qf4 {[%clk 0:00:18]}  Nxf3+ {[%clk 0:01:03]} 26. Qxf3 {[%clk 0:00:19]}  Qa5 {[%clk 0:00:40]} 27. Nf5 {[%clk 0:00:18]}  Qxe1+ {[%clk 0:00:40]} 0-1


[Site "https://www.chess.com"]

[Event "Titled Tuesday Blitz August 3 2021"]
[White "Skatchkov, Pavel"]
[Black "Petrovskyi, Vadym"]
[WhiteFideId "4121848"]
[BlackFideId "14165210"]
[WhiteElo "2476"]
[BlackElo "2305"]
[Result "1-0"]
[Round "07"]
[TimeControl "180+1"]
[Date "2021.08.03"]
[WhiteClock "0:01:06"]
[BlackClock "0:00:44"]

1. d4 {[%clk 0:02:51]}  Nf6 {[%clk 0:02:59]} 2. c4 {[%clk 0:02:52]}  g6 {[%clk 0:02:59]} 3. Nc3 {[%clk 0:02:52]}  Bg7 {[%clk 0:02:59]} 4. e4 {[%clk 0:02:51]}  d6 {[%clk 0:02:59]} 5. h3 {[%clk 0:02:51]}  O-O {[%clk 0:02:59]} 6. Be3 {[%clk 0:02:52]}  e5 {[%clk 0:02:59]} 7. d5 {[%clk 0:02:52]}  a5 {[%clk 0:02:59]} 8. g4 {[%clk 0:02:51]}  Na6 {[%clk 0:02:59]} 9. Qd2 {[%clk 0:02:48]}  c6 {[%clk 0:02:59]} 10. f3 {[%clk 0:02:48]}  cxd5 {[%clk 0:02:59]} 11. cxd5 {[%clk 0:02:49]}  Nd7 {[%clk 0:02:59]} 12. h4 {[%clk 0:02:36]}  Ndc5 {[%clk 0:02:59]} 13. h5 {[%clk 0:02:33]}  f5 {[%clk 0:02:48]} 14. hxg6 {[%clk 0:02:30]}  hxg6 {[%clk 0:02:48]} 15. gxf5 {[%clk 0:02:28]}  gxf5 {[%clk 0:02:49]} 16. Bg5 {[%clk 0:02:20]}  Qe8 {[%clk 0:02:48]} 17. O-O-O {[%clk 0:02:08]}  Qg6 {[%clk 0:02:42]} 18. Bxa6 {[%clk 0:02:00]}  bxa6 {[%clk 0:02:22]} 19. Nge2 {[%clk 0:01:58]}  fxe4 {[%clk 0:02:18]} 20. fxe4 {[%clk 0:01:45]}  Nxe4 {[%clk 0:02:09]} 21. Nxe4 {[%clk 0:01:46]}  Qxe4 {[%clk 0:02:09]} 22. Nc3 {[%clk 0:01:43]}  Qd4 {[%clk 0:01:48]} 23. Qh2 {[%clk 0:01:42]}  Bf5 {[%clk 0:01:26]} 24. Rxd4 {[%clk 0:01:27]}  exd4 {[%clk 0:01:27]} 25. Bh6 {[%clk 0:01:23]}  dxc3 {[%clk 0:01:22]} 26. Rg1 {[%clk 0:01:16]}  cxb2+ {[%clk 0:01:20]} 27. Qxb2 {[%clk 0:01:16]}  Rac8+ {[%clk 0:01:08]} 28. Kd1 {[%clk 0:01:17]}  Bc2+ {[%clk 0:01:02]} 29. Kd2 {[%clk 0:01:10]}  Rf2+ {[%clk 0:00:54]} 30. Ke3 {[%clk 0:01:07]}  Bg6 {[%clk 0:00:44]} 31. Qxg7# {[%clk 0:01:06]} 1-0


[Site "https://www.chess.com"]

[Event "Titled Tuesday Blitz August 3 2021"]
[White "Spata, German"]
[Black "Siva Mahadevan"]
[WhiteFideId "113026"]
[BlackFideId "25043153"]
[WhiteElo "2238"]
[BlackElo "2203"]
[Result "0-1"]
[Round "07"]
[TimeControl "180+1"]
[Date "2021.08.03"]
[WhiteClock "0:00:10"]
[BlackClock "0:00:27"]

1. Nf3 {[%clk 0:03:00]}  c5 {[%clk 0:02:59]} 2. c4 {[%clk 0:02:59]}  Nc6 {[%clk 0:02:58]} 3. Nc3 {[%clk 0:02:58]}  g6 {[%clk 0:02:58]} 4. g3 {[%clk 0:02:57]}  Bg7 {[%clk 0:02:58]} 5. Bg2 {[%clk 0:02:57]}  d6 {[%clk 0:02:58]} 6. O-O {[%clk 0:02:57]}  Bf5 {[%clk 0:02:58]} 7. d3 {[%clk 0:02:57]}  Qd7 {[%clk 0:02:58]} 8. a3 {[%clk 0:02:55]}  Bh3 {[%clk 0:02:55]} 9. Nd5 {[%clk 0:02:51]}  Bxg2 {[%clk 0:02:54]} 10. Kxg2 {[%clk 0:02:52]}  e6 {[%clk 0:02:51]} 11. Nc3 {[%clk 0:02:47]}  Nge7 {[%clk 0:02:50]} 12. Bd2 {[%clk 0:02:37]}  O-O {[%clk 0:02:49]} 13. Rb1 {[%clk 0:02:37]}  a5 {[%clk 0:02:46]} 14. Qa4 {[%clk 0:02:35]}  d5 {[%clk 0:02:45]} 15. Qb5 {[%clk 0:02:23]}  Qd6 {[%clk 0:02:39]} 16. cxd5 {[%clk 0:02:19]}  Nxd5 {[%clk 0:02:36]} 17. Nxd5 {[%clk 0:02:19]}  exd5 {[%clk 0:02:17]} 18. Bf4 {[%clk 0:02:19]}  Qe7 {[%clk 0:02:17]} 19. Rfc1 {[%clk 0:02:07]}  Qxe2 {[%clk 0:02:15]} 20. Qxc5 {[%clk 0:01:46]}  Qxd3 {[%clk 0:02:11]} 21. Rd1 {[%clk 0:01:45]}  Qe2 {[%clk 0:02:02]} 22. Re1 {[%clk 0:01:34]}  Qc4 {[%clk 0:01:58]} 23. Rec1 {[%clk 0:01:31]}  Qxc5 {[%clk 0:01:52]} 24. Rxc5 {[%clk 0:01:32]}  Rfd8 {[%clk 0:01:53]} 25. Rb5 {[%clk 0:01:29]}  Rd7 {[%clk 0:01:52]} 26. Rd1 {[%clk 0:01:24]}  d4 {[%clk 0:01:51]} 27. Ne5 {[%clk 0:01:20]}  Nxe5 {[%clk 0:01:41]} 28. Bxe5 {[%clk 0:01:21]}  Bxe5 {[%clk 0:01:41]} 29. Rxe5 {[%clk 0:01:22]}  f5 {[%clk 0:01:34]} 30. Rd3 {[%clk 0:01:18]}  Kf7 {[%clk 0:01:32]} 31. Kf3 {[%clk 0:01:13]}  Ra6 {[%clk 0:01:29]} 32. Rb5 {[%clk 0:01:09]}  Kf6 {[%clk 0:01:26]} 33. h3 {[%clk 0:01:01]}  h6 {[%clk 0:01:19]} 34. g4 {[%clk 0:01:01]}  fxg4+ {[%clk 0:01:17]} 35. hxg4 {[%clk 0:01:02]}  a4 {[%clk 0:01:08]} 36. Kf4 {[%clk 0:00:56]}  Re6 {[%clk 0:01:02]} 37. Rb4 {[%clk 0:00:52]}  g5+ {[%clk 0:01:00]} 38. Kf3 {[%clk 0:00:52]}  Ke5 {[%clk 0:01:00]} 39. Rxa4 {[%clk 0:00:38]}  Rf6+ {[%clk 0:00:56]} 40. Ke2 {[%clk 0:00:38]}  Rf4 {[%clk 0:00:44]} 41. f3 {[%clk 0:00:36]}  Kd5 {[%clk 0:00:41]} 42. Ra5+ {[%clk 0:00:30]}  Kc6 {[%clk 0:00:37]} 43. Re5 {[%clk 0:00:27]}  Rd5 {[%clk 0:00:36]} 44. Re4 {[%clk 0:00:26]}  Kc5 {[%clk 0:00:33]} 45. Rxf4 {[%clk 0:00:24]}  gxf4 {[%clk 0:00:34]} 46. Rb3 {[%clk 0:00:24]}  Re5+ {[%clk 0:00:29]} 47. Kd2 {[%clk 0:00:24]}  b5 {[%clk 0:00:28]} 48. Rb4 {[%clk 0:00:12]}  Re3 {[%clk 0:00:27]} 49. b3 {[%clk 0:00:10]} 0-1


[Site "https://www.chess.com"]